bitfinex/quotes_ETHUSD_20250219
["timestamp","ask_amount","ask_price","bid_price","bid_amount"]
[1739982045498,0.75531529,2717.9,2717.6,3.67969]
[1739982045659,0.75531529,2717.9,2717.8,4.43014]
[1739982045858,0.75531529,2717.9,2717.8,1.56534953]
[1739982046274,0.75531529,2717.9,2717.5,8.98969]
[1739982046487,0.75531529,2717.9,2717.7,3.67957]
[1739982046686,0.75531529,2717.9,2717.8,3.67944]
[1739982047273,4.4871,2718.5,2717.9,3.67929]
[1739982047616,0.72088546,2718.0,2717.5,6.0606]
[1739982047819,0.72088546,2718.0,2717.8,3.67937]
[1739982048039,0.72088546,2718.0,2717.6,0.60606]
[1739982048183,3.67945,2717.8,2717.2,3.9632]
[1739982048382,3.67945,2717.8,2717.3,3.68011]
[1739982048923,3.67968,2717.7,2717.0,5.3099]
[1739982049118,3.67968,2717.7,2717.0,8.99036]
[1739982049430,4.51738373,2717.7,2717.0,5.3099]
[1739982049736,3.67985,2717.5,2716.6,5.3099]
[1739982050019,3.68011,2717.4,2716.7,3.68083]
[1739982050590,0.7869,2717.6,2716.6,5.3099]
[1739982050794,4.2633269,2717.5,2716.8,3.68077]
[1739982051210,0.5834069,2717.5,2716.9,3.68064]
[1739982051407,4.2632769,2717.5,2716.9,3.68064]
[1739982051799,0.5834069,2717.5,2716.9,3.68064]
[1739982051999,0.5834069,2717.5,2716.9,3.68057]
[1739982052593,0.5834069,2717.5,2716.9,3.68058]
[1739982052822,4.2632669,2717.5,2716.9,3.68058]
[1739982053020,4.18508669,2717.4,2716.7,3.68084]
[1739982053318,0.05259767,2717.3,2716.6,8.99097]
[1739982053546,0.05259767,2717.3,2716.7,3.68092]
[1739982053993,0.05259767,2717.3,2716.6,5.3099]
[1739982053994,0.7517,2717.1,2716.6,5.3099]
[1739982054194,0.05211388,2717.0,2716.6,3.68105]
[1739982054698,0.05211388,2717.0,2716.5,0.8281]
[1739982054922,0.05211388,2717.0,2716.7,3.6809]
[1739982055349,0.7681,2717.2,2716.8,3.68076]
[1739982055647,0.50501669,2717.4,2716.8,3.68076]
[1739982055814,0.54802182,2717.3,2716.8,3.68076]
[1739982056212,0.54802182,2717.3,2716.5,4.50928]
[1739982056450,0.05240515,2717.3,2716.9,3.68053]
[1739982056745,0.7712,2717.5,2716.9,7.36111]
[1739982057219,0.05225632,2717.4,2716.7,3.68087]
[1739982057421,3.68019,2717.3,2716.5,4.50923]
[1739982057632,3.73236153,2717.2,2716.6,3.68103]
[1739982057845,0.79334668,2717.2,2716.7,3.68086]
[1739982058017,0.79334668,2717.2,2716.8,3.68073]
[1739982058349,0.05209153,2717.2,2716.9,3.68059]
[1739982058856,0.05199261,2717.1,2716.9,3.68059]
[1739982059007,3.68006,2717.4,2716.8,3.68072]
[1739982059212,0.05219045,2717.3,2716.7,3.68082]
[1739982059414,0.05219045,2717.3,2716.9,3.68056]
[1739982059614,0.7712,2717.5,2716.9,3.68056]
[1739982059811,0.05230588,2717.4,2716.9,3.68056]
[1739982060149,0.05230588,2717.4,2716.8,3.68077]
[1739982060349,0.05230588,2717.4,2716.6,5.3099]
[1739982060560,3.68032,2717.2,2716.6,5.3099]
[1739982060853,3.68032,2717.2,2716.6,3.68096]
[1739982060854,3.68025,2717.2,2716.6,3.68096]
[1739982061048,0.368025,2717.1,2716.6,3.68096]
[1739982061212,0.368025,2717.1,2716.3,5.3099]
[1739982061213,4.048435,2717.1,2716.4,3.68127]
[1739982061413,3.68082,2716.8,2716.3,5.3099]
[1739982061618,0.05154352,2716.7,2716.3,5.3099]
[1739982061819,3.68096,2716.7,2715.9,6.067]
[1739982062049,3.68148,2716.3,2715.6,0.72778764]
[1739982062210,0.05055445,2716.2,2715.5,8.99233]
[1739982062453,0.7615,2716.4,2715.8,3.68204]
[1739982062650,0.05093284,2716.3,2715.6,3.68233]
[1739982062878,0.05093284,2716.3,2715.8,3.68215]
[1739982063077,0.50030412,2716.3,2715.8,3.68215]
[1739982063261,0.50030412,2716.3,2715.6,3.68229]
[1739982063481,0.50030412,2716.3,2715.7,3.68228]
[1739982064173,0.50030412,2716.3,2715.8,3.68214]
[1739982064375,0.50030412,2716.3,2715.6,3.68233]
[1739982064581,0.05093284,2716.3,2715.6,3.68233]
[1739982064779,0.05093284,2716.3,2715.5,6.0362126]
[1739982064780,3.68183,2716.1,2715.5,6.0362126]
[1739982064983,4.46301,2716.2,2715.5,4.4088026]
[1739982065169,0.05003136,2716.0,2715.5,4.4088026]
[1739982065369,3.73190038,2716.1,2715.5,0.7263126]
[1739982065571,4.46301,2716.2,2715.5,0.7263126]
[1739982065572,0.04993234,2715.9,2715.5,0.7263126]
[1739982065916,0.04983331,2715.8,2715.6,3.6824]
[1739982066089,0.04983331,2715.8,2715.5,4.4088226]
[1739982066263,0.81949104,2716.0,2715.5,0.7263126]
[1739982066531,0.04993234,2715.9,2715.4,3.68259]
[1739982066677,0.04993234,2715.9,2715.7,3.68228]
[1739982067158,0.04993234,2715.9,2715.8,3.68215]
[1739982067354,4.29435326,2716.6,2716.0,3.68187]
[1739982067355,0.7941,2716.5,2716.0,3.68187]
[1739982067558,0.368096,2716.6,2715.8,0.03681919]
[1739982067796,5.36,2716.7,2716.4,3.68133]
[1739982068101,0.7941,2716.8,2716.2,3.68152]
[1739982068298,3.68095,2716.7,2715.9,9.27384]
[1739982068496,3.68116,2716.6,2715.9,5.3099]
[1739982068702,0.736209,2716.5,2715.9,8.99181]
[1739982068902,0.78396891,2716.5,2716.0,3.68187]
[1739982069395,0.04775991,2716.5,2715.9,5.3099]
[1739982069557,0.04775991,2716.5,2716.0,3.68181]
[1739982069759,0.7941,2716.8,2716.1,3.68166]
[1739982069965,0.04766092,2716.4,2715.9,5.3099]
[1739982070165,0.8104,2716.3,2715.9,5.3099]
[1739982070395,0.85796192,2716.3,2715.9,8.9918]
[1739982070700,0.85796192,2716.3,2715.9,5.3099]
[1739982071196,3.68168,2716.2,2715.5,3.68253]
[1739982071384,3.68168,2716.2,2715.4,6.1359]
[1739982071699,0.04753496,2716.1,2715.8,3.68205]
[1739982071902,0.04753496,2716.1,2715.6,3.68234]
[1739982072094,4.94587919,2716.3,2715.7,3.68229]
[1739982072354,0.04730904,2716.0,2715.7,3.68229]
[1739982072585,4.94587919,2716.3,2715.7,3.68229]
[1739982072802,0.04721001,2715.9,2715.8,3.68215]
[1739982072981,1.26432919,2716.3,2715.8,3.68215]
[1739982073180,0.04721001,2715.9,2715.8,3.68215]
[1739982073381,4.94581919,2716.3,2715.6,3.68234]
[1739982073695,3.68161,2716.2,2715.6,3.68234]
[1739982073906,3.72911706,2716.2,2715.6,3.68234]
[1739982074427,3.68176,2716.1,2715.5,3.68255]
[1739982074717,0.04730904,2716.0,2715.4,9.81851]
[1739982074872,0.04730904,2716.0,2715.4,9.81848]
[1739982075217,0.04730904,2716.0,2715.4,8.99256]
[1739982075365,3.72918904,2716.0,2715.4,8.99256]
[1739982075567,4.56458332,2716.0,2715.4,5.3099]
[1739982075813,4.56458332,2716.0,2715.4,8.99253]
[1739982076011,4.56458332,2716.0,2715.5,3.68253]
[1739982076214,0.88270332,2716.0,2715.5,3.68253]
[1739982076786,0.04730904,2716.0,2715.5,3.68253]
[1739982076995,0.04730904,2716.0,2715.5,3.68248]
[1739982077313,0.04730904,2716.0,2715.5,7.36493]
[1739982077604,0.04730904,2716.0,2715.5,3.68243]
[1739982077797,3.68189,2716.0,2715.4,5.3099]
[1739982077992,0.04721001,2715.9,2715.4,8.99248]
[1739982078206,0.04721001,2715.9,2715.5,3.68255]
[1739982078710,3.68175,2716.1,2715.5,3.68255]
[1739982078866,0.04715512,2715.8,2715.6,3.68237]
[1739982079070,3.68175,2716.1,2715.5,3.68255]
[1739982079392,0.50982755,2716.0,2715.4,8.99259]
[1739982079600,0.50982755,2716.0,2715.5,3.68252]
[1739982080499,0.50982755,2716.0,2715.5,3.68256]
[1739982081144,3.68203,2715.9,2715.4,8.99259]
[1739982081424,0.50982755,2716.0,2715.5,3.68254]
[1739982081598,0.04715512,2715.8,2715.7,3.68229]
[1739982081908,4.45997,2716.6,2716.0,3.68182]
[1739982082093,4.45997,2716.6,2715.8,3.68206]
[1739982082299,0.7789,2716.6,2716.2,3.68161]
[1739982082483,0.8286,2716.9,2716.5,3.68119]
[1739982082669,0.8286,2716.9,2716.4,3.68121]
[1739982082867,0.8286,2716.9,2716.2,4.841961]
[1739982083099,0.8286,2716.9,2716.5,3.68117]
[1739982083297,0.792,2717.2,2716.6,3.68096]
[1739982083521,4.47226,2717.2,2716.4,3.68127]
[1739982083811,0.792,2717.2,2716.6,3.68095]
[1739982084010,0.792,2717.2,2716.4,8.99115]
[1739982084216,3.6805,2717.1,2716.4,12.67241]
[1739982084680,0.792,2717.2,2716.8,3.68073]
[1739982084934,0.7506,2717.5,2716.9,3.68064]
[1739982085093,0.04687126,2717.1,2716.7,0.7726]
[1739982085304,0.04687126,2717.1,2717.0,3.68052]
[1739982085504,0.04687126,2717.1,2717.0,3.96252]
[1739982085719,3.67907,2718.1,2717.2,3.68019]
[1739982085871,4.42953,2718.2,2717.3,5.3099]
[1739982085872,0.7506,2718.2,2717.3,5.3099]
[1739982086077,3.67941,2717.9,2717.3,5.3099]
[1739982086303,0.735859,2717.8,2717.3,5.3099]
[1739982086511,4.415379,2717.8,2717.3,5.3099]
[1739982086695,0.7506,2717.7,2717.3,5.3099]
[1739982087281,0.74107129,2718.1,2717.3,8.99002]
[1739982087494,0.7506,2718.0,2717.4,3.67989]
[1739982087827,0.7506,2718.0,2717.6,3.6797]
[1739982088332,3.67953,2717.8,2717.3,5.3099]
[1739982088676,0.04092398,2717.7,2717.3,5.3099]
[1739982089242,0.04092398,2717.7,2717.6,3.67971]
[1739982089404,0.04092398,2717.7,2717.5,4.47685]
[1739982089722,0.74107129,2718.1,2717.5,4.47685]
[1739982089879,1.28438845,2718.1,2717.3,8.98997]
[1739982090076,3.71993625,2718.0,2717.3,8.98997]
[1739982090514,0.04075625,2718.0,2717.5,3.67984]
[1739982091046,0.04075625,2718.0,2717.4,0.7769]
[1739982091906,0.04075625,2718.0,2717.4,4.45686]
[1739982092333,0.04075625,2718.0,2717.3,5.3099]
[1739982092334,3.67939,2717.9,2717.3,5.3099]
[1739982092486,3.67974,2717.6,2717.3,5.3099]
[1739982092685,0.03759744,2717.5,2716.7,3.96191]
[1739982092922,0.8106,2717.4,2716.7,7.64277]
[1739982093123,0.8106,2717.4,2716.7,7.36177]
[1739982093423,0.04035368,2717.3,2716.7,3.68086]
[1739982093618,0.04035368,2717.3,2716.9,3.68065]
[1739982095022,0.04035368,2717.3,2716.9,7.36124]
[1739982095209,0.04035368,2717.3,2716.9,3.68059]
[1739982095637,0.04035368,2717.3,2717.0,3.68044]
[1739982095934,0.04035368,2717.3,2717.1,3.68037]
[1739982096301,0.04035368,2717.3,2716.9,3.68053]
[1739982096503,3.67974,2717.6,2716.9,3.68053]
[1739982096720,0.0395133,2717.2,2716.9,3.68053]
[1739982096920,0.813473,2717.6,2716.9,3.68053]
[1739982097195,3.67987,2717.5,2716.7,4.683516]
[1739982097453,3.67987,2717.5,2716.7,8.364346]
[1739982097623,0.03817375,2717.4,2716.7,4.683416]
[1739982097933,0.03817375,2717.4,2716.9,3.68065]
[1739982098227,0.03817375,2717.4,2716.7,9.993366]
[1739982098431,3.68014,2717.3,2716.7,5.3099]
[1739982098732,0.37180338,2717.4,2716.7,5.3099]
[1739982098890,0.37180338,2717.4,2716.8,3.68079]
[1739982099439,3.6802,2717.3,2716.7,5.3099]
[1739982099601,0.8079,2717.2,2716.7,5.3099]
[1739982099791,3.68055,2717.0,2716.7,5.3099]
[1739982099993,0.7809,2716.9,2716.1,3.68166]
[1739982100307,3.68086,2716.8,2716.2,3.6816]
[1739982100493,3.68094,2716.7,2716.0,8.99164]
[1739982100689,3.68113,2716.6,2716.0,5.3099]
[1739982101031,3.68113,2716.6,2716.0,8.99176]
[1739982101245,3.68113,2716.6,2716.0,5.3099]
[1739982101547,3.68171,2716.2,2715.6,0.814]
[1739982101847,0.788,2716.5,2715.5,5.3099]
[1739982101848,4.46995,2716.0,2715.5,5.3099]
[1739982101992,4.46995,2716.0,2715.2,8.99282]
[1739982102193,4.46995,2716.0,2715.2,8.99278]
[1739982102383,5.35962323,2716.0,2715.3,3.68274]
[1739982102788,5.35962323,2716.0,2715.2,12.67565]
[1739982102988,5.35962323,2716.0,2715.2,12.67566]
[1739982103243,3.68236,2715.7,2715.0,14.867008]
[1739982103386,0.8289,2715.4,2715.0,14.867008]
[1739982103828,0.8289,2715.4,2715.0,18.550218]
[1739982104030,0.8289,2715.8,2715.2,3.68289]
[1739982104231,0.8289,2715.8,2715.3,3.68269]
[1739982104735,0.88967323,2716.0,2715.5,3.68253]
[1739982105050,0.8133,2716.1,2715.7,3.68219]
[1739982105878,3.68112,2716.6,2715.9,3.6819]
[1739982106026,3.68112,2716.6,2715.8,0.8148]
[1739982106027,4.42783802,2716.6,2715.8,0.8148]
[1739982106232,4.42783802,2716.6,2715.7,7.36446]
[1739982106233,0.5225038,2716.5,2715.6,5.3099]
[1739982106546,0.5225038,2716.5,2715.7,3.68221]
[1739982106872,4.2037138,2716.5,2715.7,3.68221]
[1739982107256,4.2037138,2716.5,2715.7,3.68219]
[1739982107445,3.68135,2716.4,2715.7,3.68219]
[1739982107762,0.42038538,2716.3,2715.7,3.68219]
[1739982107972,0.42038538,2716.3,2715.8,3.68214]
[1739982108155,0.42038538,2716.3,2715.7,3.68219]
[1739982108561,0.8265,2716.2,2715.6,8.99219]
[1739982108945,0.8265,2716.2,2715.9,3.682]
[1739982109472,4.42782802,2716.6,2715.9,3.68192]
[1739982109473,0.7947,2716.5,2715.9,3.68192]
[1739982109775,1.3169388,2716.5,2715.9,3.68192]
[1739982109972,1.3169388,2716.5,2716.0,3.68188]
[1739982110834,3.68135,2716.4,2715.7,3.6822]
[1739982111229,3.68163,2716.2,2715.6,5.3099]
[1739982111435,3.68163,2716.2,2715.6,8.99222]
[1739982111664,4.417927,2716.2,2715.6,8.99222]
[1739982112493,4.417927,2716.2,2715.6,5.3099]
[1739982112777,4.47995,2716.1,2715.6,5.3099]
[1739982112980,0.7982,2716.1,2715.6,5.3099]
[1739982113192,0.7982,2716.1,2715.7,3.68221]
[1739982113737,0.7982,2716.1,2715.6,8.99231]
[1739982113937,0.7982,2716.1,2715.7,3.68222]
[1739982114236,0.7982,2716.1,2715.7,3.68229]
[1739982114431,4.48,2716.1,2715.5,0.7595]
[1739982114638,3.68191,2716.0,2715.4,3.68259]
[1739982114834,0.7982,2716.1,2715.6,3.68242]
[1739982115038,1.3198057,2716.1,2715.7,3.68228]
[1739982115277,0.7982,2716.1,2715.7,3.68228]
[1739982115571,0.7982,2716.1,2715.6,7.36477]
[1739982115784,0.7982,2716.1,2715.7,3.68229]
[1739982116147,0.7982,2716.1,2715.6,3.68235]
[1739982116563,4.48,2716.1,2715.5,3.68247]
[1739982116763,1.3198297,2716.1,2715.6,3.6824]
[1739982116963,1.3198297,2716.1,2715.4,3.68261]
[1739982117160,1.3198297,2716.1,2715.6,3.6824]
[1739982117566,1.3198297,2716.1,2715.6,7.3648]
[1739982117762,1.3198297,2716.1,2715.6,3.6824]
[1739982118080,0.57377467,2716.0,2715.6,3.6824]
[1739982118457,0.57377467,2716.0,2715.4,7.36522]
[1739982118659,4.47995,2716.1,2715.4,3.68261]
[1739982118861,3.68189,2716.0,2715.3,3.96483]
[1739982119056,3.68189,2716.0,2715.2,5.3099]
[1739982119057,3.68202,2715.9,2715.2,5.3099]
[1739982119307,0.736297,2716.2,2715.0,14.867008]
[1739982119308,0.754,2715.6,2715.0,14.867008]
[1739982119608,0.754,2715.6,2715.2,3.68295]
[1739982119758,4.45311,2716.1,2715.3,3.68271]
[1739982119958,8.13497,2716.1,2715.3,3.68271]
[1739982120271,3.6819,2716.0,2715.3,3.68271]
[1739982120451,1.50300191,2716.1,2715.2,0.74555251]
[1739982120656,3.68195,2716.0,2715.2,0.74555251]
[1739982120857,0.9884212,2716.0,2715.2,0.74555251]
[1739982121109,5.46595499,2716.1,2715.0,18.550228]
[1739982121407,4.78413499,2716.1,2715.4,3.68262]
[1739982121703,8.46588499,2716.1,2715.4,3.68262]
[1739982122058,4.50300191,2716.1,2715.4,3.68262]
[1739982122258,1.66339189,2716.1,2715.6,3.68242]
[1739982122459,0.7713,2716.1,2715.6,3.68242]
[1739982122763,3.68153,2716.3,2715.5,3.68255]
[1739982123077,4.49282646,2716.5,2715.4,3.68269]
[1739982123279,0.7683,2716.4,2715.3,0.8324]
[1739982123456,3.68184,2716.1,2715.3,4.51517]
[1739982123653,4.45019,2716.0,2715.0,18.550128]
[1739982123894,3.68208,2715.9,2715.0,18.832128]
[1739982124068,0.7683,2716.0,2715.2,3.68284]
[1739982124394,0.7683,2716.0,2715.5,3.68248]
[1739982124572,0.7683,2716.0,2715.3,3.68274]
[1739982124773,4.895241,2716.0,2715.1,3.68299]
[1739982124974,4.895241,2716.0,2715.1,7.366]
[1739982125283,1.213301,2716.0,2715.3,3.68277]
[1739982125597,0.7683,2716.0,2715.3,3.68277]
[1739982125898,3.68208,2715.9,2715.1,3.68304]
[1739982126195,3.68208,2715.9,2715.2,3.6829]
[1739982126553,0.7683,2716.0,2715.3,3.68275]
[1739982126791,4.45026,2716.0,2715.2,3.68291]
[1739982126954,3.68218,2715.8,2715.1,3.683]
[1739982127559,1.213326,2716.0,2715.2,3.68287]
[1739982127803,0.7683,2716.0,2715.2,3.68287]
[1739982128007,0.7683,2716.0,2715.0,21.69736182]
[1739982128219,3.68222,2715.8,2715.0,18.550228]
[1739982128416,3.68202,2715.9,2715.0,18.550228]
[1739982128908,3.68202,2715.9,2715.1,3.68297]
[1739982128909,3.68215,2715.8,2715.1,3.68297]
[1739982129097,0.813247,2715.8,2715.1,3.68297]
[1739982129302,3.68235,2715.7,2715.0,14.867008]
[1739982129465,4.46961,2715.6,2715.0,14.867008]
[1739982129815,4.46961,2715.6,2715.0,18.550208]
[1739982129980,4.46961,2715.6,2715.0,14.867008]
[1739982130177,0.7871,2715.6,2715.0,18.550208]
[1739982131114,0.7871,2715.6,2715.1,3.68308]
[1739982131979,0.7871,2715.6,2715.2,3.68285]
[1739982132166,0.7871,2715.6,2715.1,1.31938206]
[1739982132366,0.7871,2715.6,2715.1,5.00248206]
[1739982132569,0.7871,2715.6,2715.1,1.31938206]
[1739982132768,0.7871,2715.6,2715.1,3.6831]
[1739982133211,0.7871,2715.6,2715.1,7.36608]
[1739982133717,0.7871,2715.6,2715.2,3.68294]
[1739982134016,4.46954,2715.6,2715.0,18.550158]
[1739982134307,0.7871,2715.6,2715.0,18.550158]
[1739982134520,5.284695,2715.6,2715.0,14.867008]
[1739982134872,3.68265,2715.5,2715.0,14.867008]
[1739982135068,5.284695,2715.6,2715.0,14.867008]
[1739982135298,1.602255,2715.6,2715.0,14.867008]
[1739982135695,4.46959,2715.6,2715.0,14.867008]
[1739982136911,0.7871,2715.6,2715.0,18.550238]
[1739982137094,0.7871,2715.6,2715.2,3.68294]
[1739982137304,0.7871,2715.6,2715.1,3.68298]
[1739982137485,0.7871,2715.6,2715.0,18.550178]
[1739982138112,3.68265,2715.5,2715.0,14.867008]
[1739982138987,3.68273,2715.4,2715.0,14.867008]
[1739982139189,3.68257,2715.5,2715.0,14.867008]
[1739982139688,3.68293,2715.3,2715.0,14.867008]
[1739982139988,3.68278,2715.4,2715.0,14.867008]
[1739982140185,5.284781,2715.6,2715.0,14.867008]
[1739982140385,1.602261,2715.6,2715.0,14.867008]
[1739982140882,1.602261,2715.6,2715.0,18.550138]
[1739982141088,0.7871,2715.6,2715.1,3.68303]
[1739982141514,4.47214,2715.8,2715.1,3.68303]
[1739982142099,8.15438,2715.8,2715.1,3.68308]
[1739982142340,0.7899,2715.8,2715.0,14.867008]
[1739982142485,0.7691,2716.6,2715.7,0.7671]
[1739982142691,4.45018,2716.6,2715.8,3.68205]
[1739982143142,5.01555313,2716.6,2715.8,3.68205]
[1739982143439,3.6812,2716.5,2715.7,0.7671]
[1739982143744,2.07910255,2716.6,2715.9,3.6819]
[1739982144242,3.68127,2716.5,2715.9,3.68201]
[1739982144447,2.07910255,2716.6,2716.0,3.68188]
[1739982144592,1.33447313,2716.6,2715.9,3.68201]
[1739982144793,3.68121,2716.5,2715.8,3.68213]
[1739982145116,1.33447313,2716.6,2715.8,3.68213]
[1739982145117,1.33447313,2716.6,2715.9,3.68193]
[1739982145451,1.33447313,2716.6,2715.8,1.12785538]
[1739982145653,3.68127,2716.5,2715.7,4.44932]
[1739982145849,0.7691,2716.6,2715.9,3.68199]
[1739982146155,4.45023,2716.6,2715.9,3.68199]
[1739982146318,0.7691,2716.6,2715.9,3.68195]
[1739982146521,0.7691,2716.6,2716.0,3.68181]
[1739982146733,0.7691,2716.6,2716.1,3.68164]
[1739982147051,0.7691,2716.9,2716.2,0.7671]
[1739982147251,3.68019,2717.3,2716.5,3.6812]
[1739982147459,0.7691,2717.1,2716.2,1.0491]
[1739982147608,3.68066,2717.0,2716.2,2.27870098]
[1739982148050,3.68066,2717.0,2716.2,5.96029098]
[1739982148561,0.7691,2717.1,2716.5,3.68119]
[1739982149741,0.7691,2717.1,2716.5,3.68112]
[1739982150062,1.68455652,2717.1,2716.3,3.68139]
[1739982150210,1.68455652,2717.1,2716.5,3.68119]
[1739982150734,0.7691,2717.1,2716.5,3.68119]
[1739982151126,4.4495,2717.1,2716.5,3.68114]
[1739982151327,0.7691,2717.1,2716.5,3.68114]
[1739982151562,3.68056,2717.0,2716.3,3.68139]
[1739982151867,3.68056,2717.0,2716.2,0.7671]
[1739982152156,0.8288,2716.2,2715.6,0.7587]
[1739982152357,3.68184,2716.1,2715.4,3.68266]
[1739982152701,3.68189,2716.0,2715.3,0.281]
[1739982152883,3.68189,2716.0,2715.3,3.9638]
[1739982153199,0.8288,2716.2,2715.4,3.68267]
[1739982153403,3.14713382,2716.5,2715.4,3.68267]
[1739982153404,0.7664,2716.5,2715.5,0.78952199]
[1739982153551,0.7664,2716.5,2715.5,0.7527]
[1739982153751,0.7664,2716.5,2715.6,3.18395176]
[1739982153967,0.7999,2716.8,2715.8,3.68215]
[1739982154176,0.7999,2716.8,2716.2,3.68159]
[1739982154374,0.7999,2717.1,2716.2,0.7658]
[1739982154598,0.7999,2717.1,2716.4,3.68123]
[1739982154804,3.68053,2717.0,2716.2,0.7658]
[1739982155009,3.68108,2716.6,2716.1,0.281]
[1739982156873,3.68176,2716.1,2715.5,0.7701]
[1739982157086,3.68176,2716.1,2715.4,3.68262]
[1739982157302,0.7663,2716.2,2715.4,7.36518]
[1739982157513,4.44795,2716.2,2715.4,3.68269]
[1739982157717,4.44795,2716.2,2715.5,3.68253]
[1739982157917,5.2977126,2716.2,2715.5,3.68253]
[1739982158322,5.2977126,2716.2,2715.3,6.82987382]
[1739982158323,3.68176,2716.1,2715.3,6.82987382]
[1739982158490,4.48549,2715.7,2715.0,18.550218]
[1739982158820,0.8031,2715.7,2715.1,3.6831]
[1739982159190,0.8031,2715.7,2715.0,14.867008]
[1739982159191,3.68244,2715.6,2715.0,14.867008]
[1739982159375,0.8031,2715.7,2715.2,3.68295]
[1739982159736,3.68189,2716.0,2715.1,0.03682863]
[1739982160024,1.10951333,2716.3,2715.7,3.68219]
[1739982160025,0.7722,2716.3,2715.7,3.68219]
[1739982160374,4.45372,2716.3,2715.7,3.68219]
[1739982160623,0.7722,2716.3,2715.7,3.68219]
[1739982160826,0.7722,2716.3,2715.8,3.68213]
[1739982161175,0.7722,2716.3,2715.7,3.68226]
[1739982161488,0.7722,2716.3,2715.8,3.68214]
[1739982161696,3.68141,2716.4,2715.8,3.68214]
[1739982161881,0.7661,2716.5,2716.0,3.68188]
[1739982164013,0.7661,2716.5,2715.8,3.68206]
[1739982164014,3.68139,2716.4,2715.8,3.68206]
[1739982164221,0.7661,2716.5,2715.7,0.814948]
[1739982164401,0.7661,2716.5,2716.1,3.68173]
[1739982165204,0.7661,2716.5,2716.2,3.68159]
[1739982165378,4.44566,2716.8,2716.2,3.68159]
[1739982165813,3.68106,2716.7,2716.0,4.45077]
[1739982166116,3.6812,2716.5,2715.8,3.68215]
[1739982166317,3.68107,2716.6,2715.8,4.44184838]
[1739982166518,3.68107,2716.6,2715.9,3.68193]
[1739982167078,3.68107,2716.6,2716.0,3.68186]
[1739982167285,7.36226,2716.6,2715.9,3.682]
[1739982167590,3.68107,2716.6,2715.9,3.682]
[1739982168209,3.68107,2716.6,2716.0,3.68187]
[1739982169431,4.44569,2716.8,2716.2,3.68152]
[1739982169792,4.42649,2716.8,2716.2,3.68152]
[1739982170124,3.68096,2716.7,2716.2,3.68152]
[1739982170322,4.42649,2716.8,2716.0,0.81237184]
[1739982170475,3.68106,2716.7,2716.0,0.81237184]
[1739982170681,3.68126,2716.5,2715.9,3.68194]
[1739982170983,3.68128,2716.5,2715.9,3.68194]
[1739982171397,3.68134,2716.4,2715.8,0.75981838]
[1739982171603,3.68155,2716.3,2715.8,0.75981838]
[1739982171823,3.68155,2716.3,2715.7,4.45118]
[1739982172029,3.68155,2716.3,2715.6,3.68236]
[1739982172225,3.68084,2716.8,2715.5,3.68255]
[1739982172435,3.68194,2716.0,2715.4,4.47083]
[1739982172657,3.0,2716.7,2715.5,3.68243]
[1739982172658,3.0,2716.6,2715.5,3.68243]
[1739982172802,9.82813382,2716.7,2715.6,3.6823]
[1739982172803,3.68141,2716.4,2715.6,3.6823]
[1739982173005,3.68149,2716.3,2715.6,3.6823]
[1739982173518,4.41821279,2716.4,2715.8,3.68214]
[1739982173713,5.75630338,2716.5,2715.8,7.36422]
[1739982174041,4.47348,2716.5,2715.9,4.45283]
[1739982175313,0.7846,2716.7,2716.0,3.7186992]
[1739982175515,0.7846,2716.7,2716.2,3.6815]
[1739982176011,3.68107,2716.6,2716.1,3.68167]
[1739982176334,0.7846,2716.7,2716.1,4.523206]
[1739982176515,0.7846,2716.7,2716.2,3.68156]
[1739982176710,0.7846,2716.7,2716.1,0.841536]
[1739982176938,3.68117,2716.6,2715.9,4.73381]
[1739982177101,3.68134,2716.4,2715.8,3.68206]
[1739982177434,0.7846,2716.7,2716.0,3.6818]
[1739982177743,4.46555,2716.7,2715.9,3.68202]
[1739982177898,4.46555,2716.7,2716.1,3.68173]
[1739982177899,0.7846,2716.7,2716.1,3.68173]
[1739982178221,4.40883573,2717.0,2716.4,3.68133]
[1739982178222,3.68068,2716.9,2716.4,3.68133]
[1739982178424,0.7883,2716.9,2716.1,4.46187]
[1739982178596,3.68086,2716.8,2716.1,4.46187]
[1739982178801,3.68094,2716.7,2716.1,7.36335]
[1739982179036,3.6808,2716.8,2716.2,0.80462654]
[1739982179234,0.7834,2716.7,2715.8,3.95423382]
[1739982179460,0.7834,2716.7,2716.1,3.68172]
[1739982179663,0.7834,2716.7,2716.2,3.68154]
[1739982180563,0.7834,2716.7,2716.0,3.68177]
[1739982180564,3.68107,2716.6,2716.0,3.68177]
[1739982180738,3.68107,2716.6,2716.0,4.81358038]
[1739982180949,0.7834,2716.7,2715.6,0.281]
[1739982180950,3.68142,2716.4,2715.6,4.50041]
[1739982181286,3.68161,2716.2,2715.6,3.68241]
[1739982181784,3.68161,2716.2,2715.7,3.68227]
[1739982181989,3.68161,2716.2,2715.6,7.36469]
[1739982182152,0.795,2716.3,2715.4,0.7814]
[1739982182356,0.795,2716.3,2715.7,3.68228]
[1739982182745,0.795,2716.3,2715.8,3.68207]
[1739982183048,4.47648,2716.3,2715.8,3.68207]
[1739982183379,0.795,2716.3,2715.8,3.68207]
[1739982184377,0.795,2716.3,2716.0,3.68184]
[1739982184586,4.48312,2716.5,2716.0,4.73293338]
[1739982185477,3.68145,2716.4,2716.0,1.05109338]
[1739982185681,4.48312,2716.5,2715.9,3.68191]
[1739982185977,3.68134,2716.4,2715.8,4.43882]
[1739982186488,0.8019,2716.5,2715.6,5.37]
[1739982186694,4.47939,2716.0,2715.6,5.37]
[1739982186866,4.47939,2716.0,2715.4,3.6826]
[1739982187068,4.47939,2716.0,2715.4,5.37886838]
[1739982187588,3.68209,2715.9,2715.4,1.69626838]